{"text_format":"1","workbook":"xlsx","n_sheets":3,"sheets":["Sheet1","Sheet2","Sheet3"],"not_rendered":{"charts":0,"images":0,"macros":1,"external_links":0,"defined_names":0,"comments":0,"pivot_tables":0},"unopened":[],"bounds":{"document_bytes":16777216,"sheet_cells":100000,"rows_first":2000,"rows_last":500,"rows_between":2000,"halvings":0,"cell_chars":16384,"cell_head_chars":4096},"cells_cut":0,"cells_raw":0,"read":"whole","date_system":"1900"}

{"sheet":"Sheet1","index":0,"n_rows":1183,"n_cols":2,"rows_kept":1183,"cut":false,"hidden":false,"merged":[]}
[1,{"$f":"OrdeUP100(A1)","v":"الأوّل"}]
[2,{"$f":"OrdeUP100(A2)","v":"الثّاني"}]
[3,"الثّالث"]
[4,"الرّابع"]
[5,"الخامس"]
[6,"السّادس"]
[7,"السّابع"]
[8,"الثّامن"]
[9,"التّاسع"]
[10,"العاشر"]
[11,"الحادي عشر"]
[12,"الثّاني عشر"]
[13,"الثّالث عشر"]
[14,"الرّابع عشر"]
[15,"الخامس عشر"]
[16,"السّادس عشر"]
[17,"السّابع عشر"]
[18,"الثّامن عشر"]
[19,"التّاسع عشر"]
[20,"العشرون"]
[21,"الحادي والعشرون"]
[22,"الثّاني والعشرون"]
[23,"الثّالث والعشرون"]
[24,"الرّابع والعشرون"]
[25,"الخامس والعشرون"]
[26,"السّادس والعشرون"]
[27,"السّابع والعشرون"]
[28,"الثّامن والعشرون"]
[29,"التّاسع والعشرون"]
[30,"الثّلاثون"]
[31,"الحادي والثّلاثون"]
[32,"الثّاني والثّلاثون"]
[33,"الثّالث والثّلاثون"]
[34,"الرّابع والثّلاثون"]
[35,"الخامس والثّلاثون"]
[36,"السّادس والثّلاثون"]
[37,"السّابع والثّلاثون"]
[38,"الثّامن والثّلاثون"]
[39,"التّاسع والثّلاثون"]
[40,"الأربعون"]
[41,"الحادي والأربعون"]
[42,"الثّاني والأربعون"]
[43,"الثّالث والأربعون"]
[44,"الرّابع والأربعون"]
[45,"الخامس والأربعون"]
[46,"السّادس والأربعون"]
[47,"السّابع والأربعون"]
[48,"الثّامن والأربعون"]
[49,"التّاسع والأربعون"]
[50,"الخمسون"]
[51,"الحادي والخمسون"]
[52,"الثّاني والخمسون"]
[53,"الثّالث والخمسون"]
[54,"الرّابع والخمسون"]
[55,"الخامس والخمسون"]
[56,"السّادس والخمسون"]
[57,"السّابع والخمسون"]
[58,"الثّامن والخمسون"]
[59,"التّاسع والخمسون"]
[60,"الستون"]
[61,"الحادي والستون"]
[62,"الثّاني والستون"]
[63,"الثّالث والستون"]
[64,"الرّابع والستون"]
[65,"الخامس والستون"]
[66,{"$f":"OrdeUP100(A66)","v":"السّادس والستون"}]
[67,"السّابع والستون"]
[68,"الثّامن والستون"]
[69,"التّاسع والستون"]
[70,"السّبعون"]
[71,"الحادي والسّبعون"]
[72,"الثّاني والسّبعون"]
[73,"الثّالث والسّبعون"]
[74,"الرّابع والسّبعون"]
[75,"الخامس والسّبعون"]
[76,"السّادس والسّبعون"]
[77,"السّابع والسّبعون"]
[78,"الثّامن والسّبعون"]
[79,"التّاسع والسّبعون"]
[80,"الثّمانون"]
[81,"الحادي والثّمانون"]
[82,"الثّاني والثّمانون"]
[83,"الثّالث والثّمانون"]
[84,"الرّابع والثّمانون"]
[85,"الخامس والثّمانون"]
[86,"السّادس والثّمانون"]
[87,"السّابع والثّمانون"]
[88,"الثّامن والثّمانون"]
[89,"التّاسع والثّمانون"]
[90,"التّسعون"]
[91,"الحادي والتّسعون"]
[92,"الثّاني والتّسعون"]
[93,"الثّالث والتّسعون"]
[94,"الرّابع والتّسعون"]
[95,"الخامس والتّسعون"]
[96,"السّادس والتّسعون"]
[97,"السّابع والتّسعون"]
[98,"الثّامن والتّسعون"]
[99,"التّاسع والتّسعون"]
[100,"مئة "]
[101,"مئة  وواحد"]
[102,"مئة وإثنين"]
[103,"مئة وثلاثة"]
[104,"مئة وأربعة"]
[105,"مئة وخمسة"]
[106,"مئة وستة"]
[107,"مئة وسبعة"]
[108,"مئة وثمانية"]
[109,"مئة وتسعة"]
[110,"مئة والعاشر"]
[111,"مئة والحادي عشر"]
[112,"مئة والثّاني عشر"]
[113,"مئة والثّالث عشر"]
[114,"مئة والرّابع عشر"]
[115,"مئة والخامس عشر"]
[116,"مئة والسّادس عشر"]
[117,"مئة والسّابع عشر"]
[118,"مئة والثّامن عشر"]
[119,"مئة والتّاسع عشر"]
[120,"مئة والعشرون"]
[121,"مئة والحادي والعشرون"]
[122,"مئة والثّاني والعشرون"]
[123,"مئة والثّالث والعشرون"]
[124,"مئة والرّابع والعشرون"]
[125,"مئة والخامس والعشرون"]
[126,"مئة والسّادس والعشرون"]
[127,"مئة والسّابع والعشرون"]
[128,"مئة والثّامن والعشرون"]
[129,"مئة والتّاسع والعشرون"]
[130,{"$f":"OrdeUP100(A130)","v":"مئة والثّلاثون"}]
[131,"مئة والحادي والثّلاثون"]
[132,"مئة والثّاني والثّلاثون"]
[133,"مئة والثّالث والثّلاثون"]
[134,"مئة والرّابع والثّلاثون"]
[135,"مئة والخامس والثّلاثون"]
[136,"مئة والسّادس والثّلاثون"]
[137,"مئة والسّابع والثّلاثون"]
[138,"مئة والثّامن والثّلاثون"]
[139,"مئة والتّاسع والثّلاثون"]
[140,"مئة والأربعون"]
[141,"مئة والحادي والأربعون"]
[142,"مئة والثّاني والأربعون"]
[143,"مئة والثّالث والأربعون"]
[144,"مئة والرّابع والأربعون"]
[145,"مئة والخامس والأربعون"]
[146,"مئة والسّادس والأربعون"]
[147,"مئة والسّابع والأربعون"]
[148,"مئة والثّامن والأربعون"]
[149,"مئة والتّاسع والأربعون"]
[150,"مئة والخمسون"]
[151,"مئة والحادي والخمسون"]
[152,"مئة والثّاني والخمسون"]
[153,"مئة والثّالث والخمسون"]
[154,"مئة والرّابع والخمسون"]
[155,"مئة والخامس والخمسون"]
[156,"مئة والسّادس والخمسون"]
[157,"مئة والسّابع والخمسون"]
[158,"مئة والثّامن والخمسون"]
[159,"مئة والتّاسع والخمسون"]
[160,"مئة والستون"]
[161,"مئة والحادي والستون"]
[162,"مئة والثّاني والستون"]
[163,"مئة والثّالث والستون"]
[164,"مئة والرّابع والستون"]
[165,"مئة والخامس والستون"]
[166,"مئة والسّادس والستون"]
[167,"مئة والسّابع والستون"]
[168,"مئة والثّامن والستون"]
[169,"مئة والتّاسع والستون"]
[170,"مئة والسّبعون"]
[171,"مئة والحادي والسّبعون"]
[172,"مئة والثّاني والسّبعون"]
[173,"مئة والثّالث والسّبعون"]
[174,"مئة والرّابع والسّبعون"]
[175,"مئة والخامس والسّبعون"]
[176,"مئة والسّادس والسّبعون"]
[177,"مئة والسّابع والسّبعون"]
[178,"مئة والثّامن والسّبعون"]
[179,"مئة والتّاسع والسّبعون"]
[180,"مئة والثّمانون"]
[181,"مئة والحادي والثّمانون"]
[182,"مئة والثّاني والثّمانون"]
[183,"مئة والثّالث والثّمانون"]
[184,"مئة والرّابع والثّمانون"]
[185,"مئة والخامس والثّمانون"]
[186,"مئة والسّادس والثّمانون"]
[187,"مئة والسّابع والثّمانون"]
[188,"مئة والثّامن والثّمانون"]
[189,"مئة والتّاسع والثّمانون"]
[190,"مئة والتّسعون"]
[191,"مئة والحادي والتّسعون"]
[192,"مئة والثّاني والتّسعون"]
[193,"مئة والثّالث والتّسعون"]
[194,{"$f":"OrdeUP100(A194)","v":"مئة والرّابع والتّسعون"}]
[195,"مئة والخامس والتّسعون"]
[196,"مئة والسّادس والتّسعون"]
[197,"مئة والسّابع والتّسعون"]
[198,"مئة والثّامن والتّسعون"]
[199,"مئة والتّاسع والتّسعون"]
[200,"مئتين "]
[201,"مئتين  وواحد"]
[202,"مئتين وإثنين"]
[203,"مئتين وثلاثة"]
[204,"مئتين وأربعة"]
[205,"مئتين وخمسة"]
[206,"مئتين وستة"]
[207,"مئتين وسبعة"]
[208,"مئتين وثمانية"]
[209,"مئتين وتسعة"]
[210,"مئتين والعاشر"]
[211,"مئتين والحادي عشر"]
[212,"مئتين والثّاني عشر"]
[213,"مئتين والثّالث عشر"]
[214,"مئتين والرّابع عشر"]
[215,"مئتين والخامس عشر"]
[216,"مئتين والسّادس عشر"]
[217,"مئتين والسّابع عشر"]
[218,"مئتين والثّامن عشر"]
[219,"مئتين والتّاسع عشر"]
[220,"مئتين والعشرون"]
[221,"مئتين والحادي والعشرون"]
[222,"مئتين والثّاني والعشرون"]
[223,"مئتين والثّالث والعشرون"]
[224,"مئتين والرّابع والعشرون"]
[225,"مئتين والخامس والعشرون"]
[226,"مئتين والسّادس والعشرون"]
[227,"مئتين والسّابع والعشرون"]
[228,"مئتين والثّامن والعشرون"]
[229,"مئتين والتّاسع والعشرون"]
[230,"مئتين والثّلاثون"]
[231,"مئتين والحادي والثّلاثون"]
[232,"مئتين والثّاني والثّلاثون"]
[233,"مئتين والثّالث والثّلاثون"]
[234,"مئتين والرّابع والثّلاثون"]
[235,"مئتين والخامس والثّلاثون"]
[236,"مئتين والسّادس والثّلاثون"]
[237,"مئتين والسّابع والثّلاثون"]
[238,"مئتين والثّامن والثّلاثون"]
[239,"مئتين والتّاسع والثّلاثون"]
[240,"مئتين والأربعون"]
[241,"مئتين والحادي والأربعون"]
[242,"مئتين والثّاني والأربعون"]
[243,"مئتين والثّالث والأربعون"]
[244,"مئتين والرّابع والأربعون"]
[245,"مئتين والخامس والأربعون"]
[246,"مئتين والسّادس والأربعون"]
[247,"مئتين والسّابع والأربعون"]
[248,"مئتين والثّامن والأربعون"]
[249,"مئتين والتّاسع والأربعون"]
[250,"مئتين والخمسون"]
[251,"مئتين والحادي والخمسون"]
[252,"مئتين والثّاني والخمسون"]
[253,"مئتين والثّالث والخمسون"]
[254,"مئتين والرّابع والخمسون"]
[255,"مئتين والخامس والخمسون"]
[256,"مئتين والسّادس والخمسون"]
[257,"مئتين والسّابع والخمسون"]
[258,{"$f":"OrdeUP100(A258)","v":"مئتين والثّامن والخمسون"}]
[259,"مئتين والتّاسع والخمسون"]
[260,"مئتين والستون"]
[261,"مئتين والحادي والستون"]
[262,"مئتين والثّاني والستون"]
[263,"مئتين والثّالث والستون"]
[264,"مئتين والرّابع والستون"]
[265,"مئتين والخامس والستون"]
[266,"مئتين والسّادس والستون"]
[267,"مئتين والسّابع والستون"]
[268,"مئتين والثّامن والستون"]
[269,"مئتين والتّاسع والستون"]
[270,"مئتين والسّبعون"]
[271,"مئتين والحادي والسّبعون"]
[272,"مئتين والثّاني والسّبعون"]
[273,"مئتين والثّالث والسّبعون"]
[274,"مئتين والرّابع والسّبعون"]
[275,"مئتين والخامس والسّبعون"]
[276,"مئتين والسّادس والسّبعون"]
[277,"مئتين والسّابع والسّبعون"]
[278,"مئتين والثّامن والسّبعون"]
[279,"مئتين والتّاسع والسّبعون"]
[280,"مئتين والثّمانون"]
[281,"مئتين والحادي والثّمانون"]
[282,"مئتين والثّاني والثّمانون"]
[283,"مئتين والثّالث والثّمانون"]
[284,"مئتين والرّابع والثّمانون"]
[285,"مئتين والخامس والثّمانون"]
[286,"مئتين والسّادس والثّمانون"]
[287,"مئتين والسّابع والثّمانون"]
[288,"مئتين والثّامن والثّمانون"]
[289,"مئتين والتّاسع والثّمانون"]
[290,"مئتين والتّسعون"]
[291,"مئتين والحادي والتّسعون"]
[292,"مئتين والثّاني والتّسعون"]
[293,"مئتين والثّالث والتّسعون"]
[294,"مئتين والرّابع والتّسعون"]
[295,"مئتين والخامس والتّسعون"]
[296,"مئتين والسّادس والتّسعون"]
[297,"مئتين والسّابع والتّسعون"]
[298,"مئتين والثّامن والتّسعون"]
[299,"مئتين والتّاسع والتّسعون"]
[300,{"$f":"OrdeUP100(A300)","v":"ثلاثمائة "}]
[301,{"$f":"OrdeUP100(A301)","v":"ثلاثمائة  وواحد"}]
[302,"ثلاثمائة وإثنين"]
[303,"ثلاثمائة وثلاثة"]
[304,"ثلاثمائة وأربعة"]
[305,"ثلاثمائة وخمسة"]
[306,"ثلاثمائة وستة"]
[307,"ثلاثمائة وسبعة"]
[308,"ثلاثمائة وثمانية"]
[309,"ثلاثمائة وتسعة"]
[310,"ثلاثمائة والعاشر"]
[311,"ثلاثمائة والحادي عشر"]
[312,"ثلاثمائة والثّاني عشر"]
[313,"ثلاثمائة والثّالث عشر"]
[314,"ثلاثمائة والرّابع عشر"]
[315,"ثلاثمائة والخامس عشر"]
[316,"ثلاثمائة والسّادس عشر"]
[317,"ثلاثمائة والسّابع عشر"]
[318,"ثلاثمائة والثّامن عشر"]
[319,"ثلاثمائة والتّاسع عشر"]
[320,"ثلاثمائة والعشرون"]
[321,"ثلاثمائة والحادي والعشرون"]
[322,"ثلاثمائة والثّاني والعشرون"]
[323,"ثلاثمائة والثّالث والعشرون"]
[324,"ثلاثمائة والرّابع والعشرون"]
[325,"ثلاثمائة والخامس والعشرون"]
[326,"ثلاثمائة والسّادس والعشرون"]
[327,"ثلاثمائة والسّابع والعشرون"]
[328,"ثلاثمائة والثّامن والعشرون"]
[329,"ثلاثمائة والتّاسع والعشرون"]
[330,"ثلاثمائة والثّلاثون"]
[331,"ثلاثمائة والحادي والثّلاثون"]
[332,"ثلاثمائة والثّاني والثّلاثون"]
[333,"ثلاثمائة والثّالث والثّلاثون"]
[334,"ثلاثمائة والرّابع والثّلاثون"]
[335,"ثلاثمائة والخامس والثّلاثون"]
[336,"ثلاثمائة والسّادس والثّلاثون"]
[337,"ثلاثمائة والسّابع والثّلاثون"]
[338,"ثلاثمائة والثّامن والثّلاثون"]
[339,"ثلاثمائة والتّاسع والثّلاثون"]
[340,"ثلاثمائة والأربعون"]
[341,"ثلاثمائة والحادي والأربعون"]
[342,"ثلاثمائة والثّاني والأربعون"]
[343,"ثلاثمائة والثّالث والأربعون"]
[344,"ثلاثمائة والرّابع والأربعون"]
[345,"ثلاثمائة والخامس والأربعون"]
[346,"ثلاثمائة والسّادس والأربعون"]
[347,"ثلاثمائة والسّابع والأربعون"]
[348,"ثلاثمائة والثّامن والأربعون"]
[349,"ثلاثمائة والتّاسع والأربعون"]
[350,"ثلاثمائة والخمسون"]
[351,"ثلاثمائة والحادي والخمسون"]
[352,"ثلاثمائة والثّاني والخمسون"]
[353,"ثلاثمائة والثّالث والخمسون"]
[354,"ثلاثمائة والرّابع والخمسون"]
[355,"ثلاثمائة والخامس والخمسون"]
[356,"ثلاثمائة والسّادس والخمسون"]
[357,"ثلاثمائة والسّابع والخمسون"]
[358,"ثلاثمائة والثّامن والخمسون"]
[359,"ثلاثمائة والتّاسع والخمسون"]
[360,"ثلاثمائة والستون"]
[361,"ثلاثمائة والحادي والستون"]
[362,"ثلاثمائة والثّاني والستون"]
[363,"ثلاثمائة والثّالث والستون"]
[364,"ثلاثمائة والرّابع والستون"]
[365,{"$f":"OrdeUP100(A365)","v":"ثلاثمائة والخامس والستون"}]
[366,"ثلاثمائة والسّادس والستون"]
[367,"ثلاثمائة والسّابع والستون"]
[368,"ثلاثمائة والثّامن والستون"]
[369,"ثلاثمائة والتّاسع والستون"]
[370,"ثلاثمائة والسّبعون"]
[371,"ثلاثمائة والحادي والسّبعون"]
[372,"ثلاثمائة والثّاني والسّبعون"]
[373,"ثلاثمائة والثّالث والسّبعون"]
[374,"ثلاثمائة والرّابع والسّبعون"]
[375,"ثلاثمائة والخامس والسّبعون"]
[376,"ثلاثمائة والسّادس والسّبعون"]
[377,"ثلاثمائة والسّابع والسّبعون"]
[378,"ثلاثمائة والثّامن والسّبعون"]
[379,"ثلاثمائة والتّاسع والسّبعون"]
[380,"ثلاثمائة والثّمانون"]
[381,"ثلاثمائة والحادي والثّمانون"]
[382,"ثلاثمائة والثّاني والثّمانون"]
[383,"ثلاثمائة والثّالث والثّمانون"]
[384,"ثلاثمائة والرّابع والثّمانون"]
[385,"ثلاثمائة والخامس والثّمانون"]
[386,"ثلاثمائة والسّادس والثّمانون"]
[387,"ثلاثمائة والسّابع والثّمانون"]
[388,"ثلاثمائة والثّامن والثّمانون"]
[389,"ثلاثمائة والتّاسع والثّمانون"]
[390,"ثلاثمائة والتّسعون"]
[391,"ثلاثمائة والحادي والتّسعون"]
[392,"ثلاثمائة والثّاني والتّسعون"]
[393,"ثلاثمائة والثّالث والتّسعون"]
[394,"ثلاثمائة والرّابع والتّسعون"]
[395,"ثلاثمائة والخامس والتّسعون"]
[396,"ثلاثمائة والسّادس والتّسعون"]
[397,"ثلاثمائة والسّابع والتّسعون"]
[398,"ثلاثمائة والثّامن والتّسعون"]
[399,"ثلاثمائة والتّاسع والتّسعون"]
[400,"أربعمئة "]
[401,"أربعمئة  وواحد"]
[402,"أربعمئة وإثنين"]
[403,"أربعمئة وثلاثة"]
[404,"أربعمئة وأربعة"]
[405,"أربعمئة وخمسة"]
[406,"أربعمئة وستة"]
[407,"أربعمئة وسبعة"]
[408,"أربعمئة وثمانية"]
[409,"أربعمئة وتسعة"]
[410,"أربعمئة والعاشر"]
[411,"أربعمئة والحادي عشر"]
[412,"أربعمئة والثّاني عشر"]
[413,"أربعمئة والثّالث عشر"]
[414,"أربعمئة والرّابع عشر"]
[415,"أربعمئة والخامس عشر"]
[416,"أربعمئة والسّادس عشر"]
[417,"أربعمئة والسّابع عشر"]
[418,"أربعمئة والثّامن عشر"]
[419,"أربعمئة والتّاسع عشر"]
[420,"أربعمئة والعشرون"]
[421,"أربعمئة والحادي والعشرون"]
[422,"أربعمئة والثّاني والعشرون"]
[423,"أربعمئة والثّالث والعشرون"]
[424,"أربعمئة والرّابع والعشرون"]
[425,"أربعمئة والخامس والعشرون"]
[426,"أربعمئة والسّادس والعشرون"]
[427,"أربعمئة والسّابع والعشرون"]
[428,"أربعمئة والثّامن والعشرون"]
[429,{"$f":"OrdeUP100(A429)","v":"أربعمئة والتّاسع والعشرون"}]
[430,"أربعمئة والثّلاثون"]
[431,"أربعمئة والحادي والثّلاثون"]
[432,"أربعمئة والثّاني والثّلاثون"]
[433,"أربعمئة والثّالث والثّلاثون"]
[434,"أربعمئة والرّابع والثّلاثون"]
[435,"أربعمئة والخامس والثّلاثون"]
[436,"أربعمئة والسّادس والثّلاثون"]
[437,"أربعمئة والسّابع والثّلاثون"]
[438,"أربعمئة والثّامن والثّلاثون"]
[439,"أربعمئة والتّاسع والثّلاثون"]
[440,"أربعمئة والأربعون"]
[441,"أربعمئة والحادي والأربعون"]
[442,"أربعمئة والثّاني والأربعون"]
[443,"أربعمئة والثّالث والأربعون"]
[444,"أربعمئة والرّابع والأربعون"]
[445,"أربعمئة والخامس والأربعون"]
[446,"أربعمئة والسّادس والأربعون"]
[447,"أربعمئة والسّابع والأربعون"]
[448,"أربعمئة والثّامن والأربعون"]
[449,"أربعمئة والتّاسع والأربعون"]
[450,"أربعمئة والخمسون"]
[451,"أربعمئة والحادي والخمسون"]
[452,"أربعمئة والثّاني والخمسون"]
[453,"أربعمئة والثّالث والخمسون"]
[454,"أربعمئة والرّابع والخمسون"]
[455,"أربعمئة والخامس والخمسون"]
[456,"أربعمئة والسّادس والخمسون"]
[457,"أربعمئة والسّابع والخمسون"]
[458,"أربعمئة والثّامن والخمسون"]
[459,"أربعمئة والتّاسع والخمسون"]
[460,"أربعمئة والستون"]
[461,"أربعمئة والحادي والستون"]
[462,"أربعمئة والثّاني والستون"]
[463,"أربعمئة والثّالث والستون"]
[464,"أربعمئة والرّابع والستون"]
[465,"أربعمئة والخامس والستون"]
[466,"أربعمئة والسّادس والستون"]
[467,"أربعمئة والسّابع والستون"]
[468,"أربعمئة والثّامن والستون"]
[469,"أربعمئة والتّاسع والستون"]
[470,"أربعمئة والسّبعون"]
[471,"أربعمئة والحادي والسّبعون"]
[472,"أربعمئة والثّاني والسّبعون"]
[473,"أربعمئة والثّالث والسّبعون"]
[474,"أربعمئة والرّابع والسّبعون"]
[475,"أربعمئة والخامس والسّبعون"]
[476,"أربعمئة والسّادس والسّبعون"]
[477,"أربعمئة والسّابع والسّبعون"]
[478,"أربعمئة والثّامن والسّبعون"]
[479,"أربعمئة والتّاسع والسّبعون"]
[480,"أربعمئة والثّمانون"]
[481,"أربعمئة والحادي والثّمانون"]
[482,"أربعمئة والثّاني والثّمانون"]
[483,"أربعمئة والثّالث والثّمانون"]
[484,"أربعمئة والرّابع والثّمانون"]
[485,"أربعمئة والخامس والثّمانون"]
[486,"أربعمئة والسّادس والثّمانون"]
[487,"أربعمئة والسّابع والثّمانون"]
[488,"أربعمئة والثّامن والثّمانون"]
[489,"أربعمئة والتّاسع والثّمانون"]
[490,"أربعمئة والتّسعون"]
[491,"أربعمئة والحادي والتّسعون"]
[492,"أربعمئة والثّاني والتّسعون"]
[493,{"$f":"OrdeUP100(A493)","v":"أربعمئة والثّالث والتّسعون"}]
[494,"أربعمئة والرّابع والتّسعون"]
[495,"أربعمئة والخامس والتّسعون"]
[496,"أربعمئة والسّادس والتّسعون"]
[497,"أربعمئة والسّابع والتّسعون"]
[498,"أربعمئة والثّامن والتّسعون"]
[499,"أربعمئة والتّاسع والتّسعون"]
[500,"خمسمئة "]
[501,"خمسمئة  وواحد"]
[502,"خمسمئة وإثنين"]
[503,"خمسمئة وثلاثة"]
[504,"خمسمئة وأربعة"]
[505,"خمسمئة وخمسة"]
[506,"خمسمئة وستة"]
[507,"خمسمئة وسبعة"]
[508,"خمسمئة وثمانية"]
[509,"خمسمئة وتسعة"]
[510,"خمسمئة والعاشر"]
[511,"خمسمئة والحادي عشر"]
[512,"خمسمئة والثّاني عشر"]
[513,"خمسمئة والثّالث عشر"]
[514,"خمسمئة والرّابع عشر"]
[515,"خمسمئة والخامس عشر"]
[516,"خمسمئة والسّادس عشر"]
[517,"خمسمئة والسّابع عشر"]
[518,"خمسمئة والثّامن عشر"]
[519,"خمسمئة والتّاسع عشر"]
[520,"خمسمئة والعشرون"]
[521,"خمسمئة والحادي والعشرون"]
[522,"خمسمئة والثّاني والعشرون"]
[523,"خمسمئة والثّالث والعشرون"]
[524,"خمسمئة والرّابع والعشرون"]
[525,"خمسمئة والخامس والعشرون"]
[526,"خمسمئة والسّادس والعشرون"]
[527,"خمسمئة والسّابع والعشرون"]
[528,"خمسمئة والثّامن والعشرون"]
[529,"خمسمئة والتّاسع والعشرون"]
[530,"خمسمئة والثّلاثون"]
[531,"خمسمئة والحادي والثّلاثون"]
[532,"خمسمئة والثّاني والثّلاثون"]
[533,"خمسمئة والثّالث والثّلاثون"]
[534,"خمسمئة والرّابع والثّلاثون"]
[535,"خمسمئة والخامس والثّلاثون"]
[536,"خمسمئة والسّادس والثّلاثون"]
[537,"خمسمئة والسّابع والثّلاثون"]
[538,"خمسمئة والثّامن والثّلاثون"]
[539,"خمسمئة والتّاسع والثّلاثون"]
[540,"خمسمئة والأربعون"]
[541,"خمسمئة والحادي والأربعون"]
[542,"خمسمئة والثّاني والأربعون"]
[543,"خمسمئة والثّالث والأربعون"]
[544,"خمسمئة والرّابع والأربعون"]
[545,"خمسمئة والخامس والأربعون"]
[546,"خمسمئة والسّادس والأربعون"]
[547,"خمسمئة والسّابع والأربعون"]
[548,"خمسمئة والثّامن والأربعون"]
[549,"خمسمئة والتّاسع والأربعون"]
[550,"خمسمئة والخمسون"]
[551,"خمسمئة والحادي والخمسون"]
[552,"خمسمئة والثّاني والخمسون"]
[553,"خمسمئة والثّالث والخمسون"]
[554,"خمسمئة والرّابع والخمسون"]
[555,"خمسمئة والخامس والخمسون"]
[556,"خمسمئة والسّادس والخمسون"]
[557,{"$f":"OrdeUP100(A557)","v":"خمسمئة والسّابع والخمسون"}]
[558,"خمسمئة والثّامن والخمسون"]
[559,"خمسمئة والتّاسع والخمسون"]
[560,"خمسمئة والستون"]
[561,"خمسمئة والحادي والستون"]
[562,"خمسمئة والثّاني والستون"]
[563,"خمسمئة والثّالث والستون"]
[564,"خمسمئة والرّابع والستون"]
[565,"خمسمئة والخامس والستون"]
[566,"خمسمئة والسّادس والستون"]
[567,"خمسمئة والسّابع والستون"]
[568,"خمسمئة والثّامن والستون"]
[569,"خمسمئة والتّاسع والستون"]
[570,"خمسمئة والسّبعون"]
[571,"خمسمئة والحادي والسّبعون"]
[572,"خمسمئة والثّاني والسّبعون"]
[573,"خمسمئة والثّالث والسّبعون"]
[574,"خمسمئة والرّابع والسّبعون"]
[575,"خمسمئة والخامس والسّبعون"]
[576,"خمسمئة والسّادس والسّبعون"]
[577,"خمسمئة والسّابع والسّبعون"]
[578,"خمسمئة والثّامن والسّبعون"]
[579,"خمسمئة والتّاسع والسّبعون"]
[580,"خمسمئة والثّمانون"]
[581,"خمسمئة والحادي والثّمانون"]
[582,"خمسمئة والثّاني والثّمانون"]
[583,"خمسمئة والثّالث والثّمانون"]
[584,"خمسمئة والرّابع والثّمانون"]
[585,"خمسمئة والخامس والثّمانون"]
[586,"خمسمئة والسّادس والثّمانون"]
[587,"خمسمئة والسّابع والثّمانون"]
[588,"خمسمئة والثّامن والثّمانون"]
[589,"خمسمئة والتّاسع والثّمانون"]
[590,"خمسمئة والتّسعون"]
[591,"خمسمئة والحادي والتّسعون"]
[592,"خمسمئة والثّاني والتّسعون"]
[593,"خمسمئة والثّالث والتّسعون"]
[594,"خمسمئة والرّابع والتّسعون"]
[595,"خمسمئة والخامس والتّسعون"]
[596,"خمسمئة والسّادس والتّسعون"]
[597,"خمسمئة والسّابع والتّسعون"]
[598,"خمسمئة والثّامن والتّسعون"]
[599,"خمسمئة والتّاسع والتّسعون"]
[600,"ستممئة "]
[601,"ستممئة  وواحد"]
[602,"ستممئة وإثنين"]
[603,"ستممئة وثلاثة"]
[604,"ستممئة وأربعة"]
[605,"ستممئة وخمسة"]
[606,"ستممئة وستة"]
[607,"ستممئة وسبعة"]
[608,"ستممئة وثمانية"]
[609,"ستممئة وتسعة"]
[610,"ستممئة والعاشر"]
[611,"ستممئة والحادي عشر"]
[612,"ستممئة والثّاني عشر"]
[613,"ستممئة والثّالث عشر"]
[614,"ستممئة والرّابع عشر"]
[615,"ستممئة والخامس عشر"]
[616,"ستممئة والسّادس عشر"]
[617,"ستممئة والسّابع عشر"]
[618,"ستممئة والثّامن عشر"]
[619,"ستممئة والتّاسع عشر"]
[620,"ستممئة والعشرون"]
[621,{"$f":"OrdeUP100(A621)","v":"ستممئة والحادي والعشرون"}]
[622,"ستممئة والثّاني والعشرون"]
[623,"ستممئة والثّالث والعشرون"]
[624,"ستممئة والرّابع والعشرون"]
[625,"ستممئة والخامس والعشرون"]
[626,"ستممئة والسّادس والعشرون"]
[627,"ستممئة والسّابع والعشرون"]
[628,"ستممئة والثّامن والعشرون"]
[629,"ستممئة والتّاسع والعشرون"]
[630,"ستممئة والثّلاثون"]
[631,"ستممئة والحادي والثّلاثون"]
[632,"ستممئة والثّاني والثّلاثون"]
[633,"ستممئة والثّالث والثّلاثون"]
[634,"ستممئة والرّابع والثّلاثون"]
[635,"ستممئة والخامس والثّلاثون"]
[636,"ستممئة والسّادس والثّلاثون"]
[637,"ستممئة والسّابع والثّلاثون"]
[638,"ستممئة والثّامن والثّلاثون"]
[639,"ستممئة والتّاسع والثّلاثون"]
[640,"ستممئة والأربعون"]
[641,"ستممئة والحادي والأربعون"]
[642,"ستممئة والثّاني والأربعون"]
[643,"ستممئة والثّالث والأربعون"]
[644,"ستممئة والرّابع والأربعون"]
[645,"ستممئة والخامس والأربعون"]
[646,"ستممئة والسّادس والأربعون"]
[647,"ستممئة والسّابع والأربعون"]
[648,"ستممئة والثّامن والأربعون"]
[649,"ستممئة والتّاسع والأربعون"]
[650,"ستممئة والخمسون"]
[651,"ستممئة والحادي والخمسون"]
[652,"ستممئة والثّاني والخمسون"]
[653,"ستممئة والثّالث والخمسون"]
[654,"ستممئة والرّابع والخمسون"]
[655,"ستممئة والخامس والخمسون"]
[656,"ستممئة والسّادس والخمسون"]
[657,"ستممئة والسّابع والخمسون"]
[658,"ستممئة والثّامن والخمسون"]
[659,"ستممئة والتّاسع والخمسون"]
[660,"ستممئة والستون"]
[661,"ستممئة والحادي والستون"]
[662,"ستممئة والثّاني والستون"]
[663,"ستممئة والثّالث والستون"]
[664,"ستممئة والرّابع والستون"]
[665,"ستممئة والخامس والستون"]
[666,"ستممئة والسّادس والستون"]
[667,"ستممئة والسّابع والستون"]
[668,"ستممئة والثّامن والستون"]
[669,"ستممئة والتّاسع والستون"]
[670,"ستممئة والسّبعون"]
[671,"ستممئة والحادي والسّبعون"]
[672,"ستممئة والثّاني والسّبعون"]
[673,"ستممئة والثّالث والسّبعون"]
[674,"ستممئة والرّابع والسّبعون"]
[675,"ستممئة والخامس والسّبعون"]
[676,"ستممئة والسّادس والسّبعون"]
[677,"ستممئة والسّابع والسّبعون"]
[678,"ستممئة والثّامن والسّبعون"]
[679,"ستممئة والتّاسع والسّبعون"]
[680,"ستممئة والثّمانون"]
[681,"ستممئة والحادي والثّمانون"]
[682,"ستممئة والثّاني والثّمانون"]
[683,"ستممئة والثّالث والثّمانون"]
[684,"ستممئة والرّابع والثّمانون"]
[685,{"$f":"OrdeUP100(A685)","v":"ستممئة والخامس والثّمانون"}]
[686,"ستممئة والسّادس والثّمانون"]
[687,"ستممئة والسّابع والثّمانون"]
[688,"ستممئة والثّامن والثّمانون"]
[689,"ستممئة والتّاسع والثّمانون"]
[690,"ستممئة والتّسعون"]
[691,"ستممئة والحادي والتّسعون"]
[692,"ستممئة والثّاني والتّسعون"]
[693,"ستممئة والثّالث والتّسعون"]
[694,"ستممئة والرّابع والتّسعون"]
[695,"ستممئة والخامس والتّسعون"]
[696,"ستممئة والسّادس والتّسعون"]
[697,"ستممئة والسّابع والتّسعون"]
[698,"ستممئة والثّامن والتّسعون"]
[699,"ستممئة والتّاسع والتّسعون"]
[700,"سبعمئة "]
[701,"سبعمئة  وواحد"]
[702,"سبعمئة وإثنين"]
[703,"سبعمئة وثلاثة"]
[704,"سبعمئة وأربعة"]
[705,"سبعمئة وخمسة"]
[706,"سبعمئة وستة"]
[707,"سبعمئة وسبعة"]
[708,"سبعمئة وثمانية"]
[709,"سبعمئة وتسعة"]
[710,"سبعمئة والعاشر"]
[711,"سبعمئة والحادي عشر"]
[712,"سبعمئة والثّاني عشر"]
[713,"سبعمئة والثّالث عشر"]
[714,"سبعمئة والرّابع عشر"]
[715,"سبعمئة والخامس عشر"]
[716,"سبعمئة والسّادس عشر"]
[717,"سبعمئة والسّابع عشر"]
[718,"سبعمئة والثّامن عشر"]
[719,"سبعمئة والتّاسع عشر"]
[720,"سبعمئة والعشرون"]
[721,"سبعمئة والحادي والعشرون"]
[722,"سبعمئة والثّاني والعشرون"]
[723,"سبعمئة والثّالث والعشرون"]
[724,"سبعمئة والرّابع والعشرون"]
[725,"سبعمئة والخامس والعشرون"]
[726,"سبعمئة والسّادس والعشرون"]
[727,"سبعمئة والسّابع والعشرون"]
[728,"سبعمئة والثّامن والعشرون"]
[729,"سبعمئة والتّاسع والعشرون"]
[730,"سبعمئة والثّلاثون"]
[731,"سبعمئة والحادي والثّلاثون"]
[732,"سبعمئة والثّاني والثّلاثون"]
[733,"سبعمئة والثّالث والثّلاثون"]
[734,"سبعمئة والرّابع والثّلاثون"]
[735,"سبعمئة والخامس والثّلاثون"]
[736,"سبعمئة والسّادس والثّلاثون"]
[737,"سبعمئة والسّابع والثّلاثون"]
[738,"سبعمئة والثّامن والثّلاثون"]
[739,"سبعمئة والتّاسع والثّلاثون"]
[740,"سبعمئة والأربعون"]
[741,"سبعمئة والحادي والأربعون"]
[742,"سبعمئة والثّاني والأربعون"]
[743,"سبعمئة والثّالث والأربعون"]
[744,"سبعمئة والرّابع والأربعون"]
[745,"سبعمئة والخامس والأربعون"]
[746,"سبعمئة والسّادس والأربعون"]
[747,"سبعمئة والسّابع والأربعون"]
[748,"سبعمئة والثّامن والأربعون"]
[749,{"$f":"OrdeUP100(A749)","v":"سبعمئة والتّاسع والأربعون"}]
[750,"سبعمئة والخمسون"]
[751,"سبعمئة والحادي والخمسون"]
[752,"سبعمئة والثّاني والخمسون"]
[753,"سبعمئة والثّالث والخمسون"]
[754,"سبعمئة والرّابع والخمسون"]
[755,"سبعمئة والخامس والخمسون"]
[756,"سبعمئة والسّادس والخمسون"]
[757,"سبعمئة والسّابع والخمسون"]
[758,"سبعمئة والثّامن والخمسون"]
[759,"سبعمئة والتّاسع والخمسون"]
[760,"سبعمئة والستون"]
[761,"سبعمئة والحادي والستون"]
[762,"سبعمئة والثّاني والستون"]
[763,"سبعمئة والثّالث والستون"]
[764,"سبعمئة والرّابع والستون"]
[765,"سبعمئة والخامس والستون"]
[766,"سبعمئة والسّادس والستون"]
[767,"سبعمئة والسّابع والستون"]
[768,"سبعمئة والثّامن والستون"]
[769,"سبعمئة والتّاسع والستون"]
[770,"سبعمئة والسّبعون"]
[771,"سبعمئة والحادي والسّبعون"]
[772,"سبعمئة والثّاني والسّبعون"]
[773,"سبعمئة والثّالث والسّبعون"]
[774,"سبعمئة والرّابع والسّبعون"]
[775,"سبعمئة والخامس والسّبعون"]
[776,"سبعمئة والسّادس والسّبعون"]
[777,"سبعمئة والسّابع والسّبعون"]
[778,"سبعمئة والثّامن والسّبعون"]
[779,"سبعمئة والتّاسع والسّبعون"]
[780,"سبعمئة والثّمانون"]
[781,"سبعمئة والحادي والثّمانون"]
[782,"سبعمئة والثّاني والثّمانون"]
[783,"سبعمئة والثّالث والثّمانون"]
[784,"سبعمئة والرّابع والثّمانون"]
[785,"سبعمئة والخامس والثّمانون"]
[786,"سبعمئة والسّادس والثّمانون"]
[787,"سبعمئة والسّابع والثّمانون"]
[788,"سبعمئة والثّامن والثّمانون"]
[789,"سبعمئة والتّاسع والثّمانون"]
[790,"سبعمئة والتّسعون"]
[791,"سبعمئة والحادي والتّسعون"]
[792,"سبعمئة والثّاني والتّسعون"]
[793,"سبعمئة والثّالث والتّسعون"]
[794,"سبعمئة والرّابع والتّسعون"]
[795,"سبعمئة والخامس والتّسعون"]
[796,"سبعمئة والسّادس والتّسعون"]
[797,"سبعمئة والسّابع والتّسعون"]
[798,"سبعمئة والثّامن والتّسعون"]
[799,"سبعمئة والتّاسع والتّسعون"]
[800,"ثمانمئة "]
[801,"ثمانمئة  وواحد"]
[802,"ثمانمئة وإثنين"]
[803,"ثمانمئة وثلاثة"]
[804,"ثمانمئة وأربعة"]
[805,"ثمانمئة وخمسة"]
[806,"ثمانمئة وستة"]
[807,"ثمانمئة وسبعة"]
[808,"ثمانمئة وثمانية"]
[809,"ثمانمئة وتسعة"]
[810,"ثمانمئة والعاشر"]
[811,"ثمانمئة والحادي عشر"]
[812,"ثمانمئة والثّاني عشر"]
[813,{"$f":"OrdeUP100(A813)","v":"ثمانمئة والثّالث عشر"}]
[814,"ثمانمئة والرّابع عشر"]
[815,"ثمانمئة والخامس عشر"]
[816,"ثمانمئة والسّادس عشر"]
[817,"ثمانمئة والسّابع عشر"]
[818,"ثمانمئة والثّامن عشر"]
[819,"ثمانمئة والتّاسع عشر"]
[820,"ثمانمئة والعشرون"]
[821,"ثمانمئة والحادي والعشرون"]
[822,"ثمانمئة والثّاني والعشرون"]
[823,"ثمانمئة والثّالث والعشرون"]
[824,"ثمانمئة والرّابع والعشرون"]
[825,"ثمانمئة والخامس والعشرون"]
[826,"ثمانمئة والسّادس والعشرون"]
[827,"ثمانمئة والسّابع والعشرون"]
[828,"ثمانمئة والثّامن والعشرون"]
[829,"ثمانمئة والتّاسع والعشرون"]
[830,"ثمانمئة والثّلاثون"]
[831,"ثمانمئة والحادي والثّلاثون"]
[832,"ثمانمئة والثّاني والثّلاثون"]
[833,"ثمانمئة والثّالث والثّلاثون"]
[834,"ثمانمئة والرّابع والثّلاثون"]
[835,"ثمانمئة والخامس والثّلاثون"]
[836,"ثمانمئة والسّادس والثّلاثون"]
[837,"ثمانمئة والسّابع والثّلاثون"]
[838,"ثمانمئة والثّامن والثّلاثون"]
[839,"ثمانمئة والتّاسع والثّلاثون"]
[840,"ثمانمئة والأربعون"]
[841,"ثمانمئة والحادي والأربعون"]
[842,"ثمانمئة والثّاني والأربعون"]
[843,"ثمانمئة والثّالث والأربعون"]
[844,"ثمانمئة والرّابع والأربعون"]
[845,"ثمانمئة والخامس والأربعون"]
[846,"ثمانمئة والسّادس والأربعون"]
[847,"ثمانمئة والسّابع والأربعون"]
[848,"ثمانمئة والثّامن والأربعون"]
[849,"ثمانمئة والتّاسع والأربعون"]
[850,"ثمانمئة والخمسون"]
[851,"ثمانمئة والحادي والخمسون"]
[852,"ثمانمئة والثّاني والخمسون"]
[853,"ثمانمئة والثّالث والخمسون"]
[854,"ثمانمئة والرّابع والخمسون"]
[855,"ثمانمئة والخامس والخمسون"]
[856,"ثمانمئة والسّادس والخمسون"]
[857,"ثمانمئة والسّابع والخمسون"]
[858,"ثمانمئة والثّامن والخمسون"]
[859,"ثمانمئة والتّاسع والخمسون"]
[860,"ثمانمئة والستون"]
[861,"ثمانمئة والحادي والستون"]
[862,"ثمانمئة والثّاني والستون"]
[863,"ثمانمئة والثّالث والستون"]
[864,"ثمانمئة والرّابع والستون"]
[865,"ثمانمئة والخامس والستون"]
[866,"ثمانمئة والسّادس والستون"]
[867,"ثمانمئة والسّابع والستون"]
[868,"ثمانمئة والثّامن والستون"]
[869,"ثمانمئة والتّاسع والستون"]
[870,"ثمانمئة والسّبعون"]
[871,"ثمانمئة والحادي والسّبعون"]
[872,"ثمانمئة والثّاني والسّبعون"]
[873,"ثمانمئة والثّالث والسّبعون"]
[874,"ثمانمئة والرّابع والسّبعون"]
[875,"ثمانمئة والخامس والسّبعون"]
[876,"ثمانمئة والسّادس والسّبعون"]
[877,{"$f":"OrdeUP100(A877)","v":"ثمانمئة والسّابع والسّبعون"}]
[878,"ثمانمئة والثّامن والسّبعون"]
[879,"ثمانمئة والتّاسع والسّبعون"]
[880,"ثمانمئة والثّمانون"]
[881,"ثمانمئة والحادي والثّمانون"]
[882,"ثمانمئة والثّاني والثّمانون"]
[883,"ثمانمئة والثّالث والثّمانون"]
[884,"ثمانمئة والرّابع والثّمانون"]
[885,"ثمانمئة والخامس والثّمانون"]
[886,"ثمانمئة والسّادس والثّمانون"]
[887,"ثمانمئة والسّابع والثّمانون"]
[888,"ثمانمئة والثّامن والثّمانون"]
[889,"ثمانمئة والتّاسع والثّمانون"]
[890,"ثمانمئة والتّسعون"]
[891,"ثمانمئة والحادي والتّسعون"]
[892,"ثمانمئة والثّاني والتّسعون"]
[893,"ثمانمئة والثّالث والتّسعون"]
[894,"ثمانمئة والرّابع والتّسعون"]
[895,"ثمانمئة والخامس والتّسعون"]
[896,"ثمانمئة والسّادس والتّسعون"]
[897,"ثمانمئة والسّابع والتّسعون"]
[898,"ثمانمئة والثّامن والتّسعون"]
[899,"ثمانمئة والتّاسع والتّسعون"]
[900,"تسعممئة "]
[901,"تسعممئة  وواحد"]
[902,"تسعممئة وإثنين"]
[903,"تسعممئة وثلاثة"]
[904,"تسعممئة وأربعة"]
[905,"تسعممئة وخمسة"]
[906,"تسعممئة وستة"]
[907,"تسعممئة وسبعة"]
[908,"تسعممئة وثمانية"]
[909,"تسعممئة وتسعة"]
[910,"تسعممئة والعاشر"]
[911,"تسعممئة والحادي عشر"]
[912,"تسعممئة والثّاني عشر"]
[913,"تسعممئة والثّالث عشر"]
[914,"تسعممئة والرّابع عشر"]
[915,"تسعممئة والخامس عشر"]
[916,"تسعممئة والسّادس عشر"]
[917,"تسعممئة والسّابع عشر"]
[918,"تسعممئة والثّامن عشر"]
[919,"تسعممئة والتّاسع عشر"]
[920,"تسعممئة والعشرون"]
[921,"تسعممئة والحادي والعشرون"]
[922,"تسعممئة والثّاني والعشرون"]
[923,"تسعممئة والثّالث والعشرون"]
[924,"تسعممئة والرّابع والعشرون"]
[925,"تسعممئة والخامس والعشرون"]
[926,"تسعممئة والسّادس والعشرون"]
[927,"تسعممئة والسّابع والعشرون"]
[928,"تسعممئة والثّامن والعشرون"]
[929,"تسعممئة والتّاسع والعشرون"]
[930,"تسعممئة والثّلاثون"]
[931,"تسعممئة والحادي والثّلاثون"]
[932,"تسعممئة والثّاني والثّلاثون"]
[933,"تسعممئة والثّالث والثّلاثون"]
[934,"تسعممئة والرّابع والثّلاثون"]
[935,"تسعممئة والخامس والثّلاثون"]
[936,"تسعممئة والسّادس والثّلاثون"]
[937,"تسعممئة والسّابع والثّلاثون"]
[938,"تسعممئة والثّامن والثّلاثون"]
[939,"تسعممئة والتّاسع والثّلاثون"]
[940,"تسعممئة والأربعون"]
[941,{"$f":"OrdeUP100(A941)","v":"تسعممئة والحادي والأربعون"}]
[942,"تسعممئة والثّاني والأربعون"]
[943,"تسعممئة والثّالث والأربعون"]
[944,"تسعممئة والرّابع والأربعون"]
[945,"تسعممئة والخامس والأربعون"]
[946,"تسعممئة والسّادس والأربعون"]
[947,"تسعممئة والسّابع والأربعون"]
[948,"تسعممئة والثّامن والأربعون"]
[949,"تسعممئة والتّاسع والأربعون"]
[950,"تسعممئة والخمسون"]
[951,"تسعممئة والحادي والخمسون"]
[952,"تسعممئة والثّاني والخمسون"]
[953,"تسعممئة والثّالث والخمسون"]
[954,"تسعممئة والرّابع والخمسون"]
[955,"تسعممئة والخامس والخمسون"]
[956,"تسعممئة والسّادس والخمسون"]
[957,"تسعممئة والسّابع والخمسون"]
[958,"تسعممئة والثّامن والخمسون"]
[959,"تسعممئة والتّاسع والخمسون"]
[960,"تسعممئة والستون"]
[961,"تسعممئة والحادي والستون"]
[962,"تسعممئة والثّاني والستون"]
[963,"تسعممئة والثّالث والستون"]
[964,"تسعممئة والرّابع والستون"]
[965,"تسعممئة والخامس والستون"]
[966,"تسعممئة والسّادس والستون"]
[967,"تسعممئة والسّابع والستون"]
[968,"تسعممئة والثّامن والستون"]
[969,"تسعممئة والتّاسع والستون"]
[970,"تسعممئة والسّبعون"]
[971,"تسعممئة والحادي والسّبعون"]
[972,"تسعممئة والثّاني والسّبعون"]
[973,"تسعممئة والثّالث والسّبعون"]
[974,"تسعممئة والرّابع والسّبعون"]
[975,"تسعممئة والخامس والسّبعون"]
[976,"تسعممئة والسّادس والسّبعون"]
[977,"تسعممئة والسّابع والسّبعون"]
[978,"تسعممئة والثّامن والسّبعون"]
[979,"تسعممئة والتّاسع والسّبعون"]
[980,"تسعممئة والثّمانون"]
[981,"تسعممئة والحادي والثّمانون"]
[982,"تسعممئة والثّاني والثّمانون"]
[983,"تسعممئة والثّالث والثّمانون"]
[984,"تسعممئة والرّابع والثّمانون"]
[985,"تسعممئة والخامس والثّمانون"]
[986,"تسعممئة والسّادس والثّمانون"]
[987,"تسعممئة والسّابع والثّمانون"]
[988,"تسعممئة والثّامن والثّمانون"]
[989,"تسعممئة والتّاسع والثّمانون"]
[990,"تسعممئة والتّسعون"]
[991,"تسعممئة والحادي والتّسعون"]
[992,"تسعممئة والثّاني والتّسعون"]
[993,"تسعممئة والثّالث والتّسعون"]
[994,"تسعممئة والرّابع والتّسعون"]
[995,"تسعممئة والخامس والتّسعون"]
[996,"تسعممئة والسّادس والتّسعون"]
[997,"تسعممئة والسّابع والتّسعون"]
[998,"تسعممئة والثّامن والتّسعون"]
[999,"تسعممئة والتّاسع والتّسعون"]
[1000,"الألف"]
[1001,"Too Large Integer"]
[1002,"Too Large Integer"]
[1003,"Too Large Integer"]
[1004,"Too Large Integer"]
[1005,{"$f":"OrdeUP100(A1005)","v":"Too Large Integer"}]
[1006,"Too Large Integer"]
[1007,"Too Large Integer"]
[1008,"Too Large Integer"]
[1009,"Too Large Integer"]
[1010,"Too Large Integer"]
[1011,"Too Large Integer"]
[1012,"Too Large Integer"]
[1013,"Too Large Integer"]
[1014,"Too Large Integer"]
[1015,"Too Large Integer"]
[1016,"Too Large Integer"]
[1017,"Too Large Integer"]
[1018,"Too Large Integer"]
[1019,"Too Large Integer"]
[1020,"Too Large Integer"]
[1021,"Too Large Integer"]
[1022,"Too Large Integer"]
[1023,"Too Large Integer"]
[1024,"Too Large Integer"]
[1025,"Too Large Integer"]
[1026,"Too Large Integer"]
[1027,"Too Large Integer"]
[1028,"Too Large Integer"]
[1029,"Too Large Integer"]
[1030,"Too Large Integer"]
[1031,"Too Large Integer"]
[1032,"Too Large Integer"]
[1033,"Too Large Integer"]
[1034,"Too Large Integer"]
[1035,"Too Large Integer"]
[1036,"Too Large Integer"]
[1037,"Too Large Integer"]
[1038,"Too Large Integer"]
[1039,"Too Large Integer"]
[1040,"Too Large Integer"]
[1041,"Too Large Integer"]
[1042,"Too Large Integer"]
[1043,"Too Large Integer"]
[1044,"Too Large Integer"]
[1045,"Too Large Integer"]
[1046,"Too Large Integer"]
[1047,"Too Large Integer"]
[1048,"Too Large Integer"]
[1049,"Too Large Integer"]
[1050,"Too Large Integer"]
[1051,"Too Large Integer"]
[1052,"Too Large Integer"]
[1053,"Too Large Integer"]
[1054,"Too Large Integer"]
[1055,"Too Large Integer"]
[1056,"Too Large Integer"]
[1057,"Too Large Integer"]
[1058,"Too Large Integer"]
[1059,"Too Large Integer"]
[1060,"Too Large Integer"]
[1061,"Too Large Integer"]
[1062,"Too Large Integer"]
[1063,"Too Large Integer"]
[1064,"Too Large Integer"]
[1065,"Too Large Integer"]
[1066,"Too Large Integer"]
[1067,"Too Large Integer"]
[1068,"Too Large Integer"]
[1069,{"$f":"OrdeUP100(A1069)","v":"Too Large Integer"}]
[1070,"Too Large Integer"]
[1071,"Too Large Integer"]
[1072,"Too Large Integer"]
[1073,"Too Large Integer"]
[1074,"Too Large Integer"]
[1075,"Too Large Integer"]
[1076,"Too Large Integer"]
[1077,"Too Large Integer"]
[1078,"Too Large Integer"]
[1079,"Too Large Integer"]
[1080,"Too Large Integer"]
[1081,"Too Large Integer"]
[1082,"Too Large Integer"]
[1083,"Too Large Integer"]
[1084,"Too Large Integer"]
[1085,"Too Large Integer"]
[1086,"Too Large Integer"]
[1087,"Too Large Integer"]
[1088,"Too Large Integer"]
[1089,"Too Large Integer"]
[1090,"Too Large Integer"]
[1091,"Too Large Integer"]
[1092,"Too Large Integer"]
[1093,"Too Large Integer"]
[1094,"Too Large Integer"]
[1095,"Too Large Integer"]
[1096,"Too Large Integer"]
[1097,"Too Large Integer"]
[1098,"Too Large Integer"]
[1099,"Too Large Integer"]
[1100,"Too Large Integer"]
[1101,"Too Large Integer"]
[1102,"Too Large Integer"]
[1103,"Too Large Integer"]
[1104,"Too Large Integer"]
[1105,"Too Large Integer"]
[1106,"Too Large Integer"]
[1107,"Too Large Integer"]
[1108,"Too Large Integer"]
[1109,"Too Large Integer"]
[1110,"Too Large Integer"]
[1111,"Too Large Integer"]
[1112,"Too Large Integer"]
[1113,"Too Large Integer"]
[1114,"Too Large Integer"]
[1115,"Too Large Integer"]
[1116,"Too Large Integer"]
[1117,"Too Large Integer"]
[1118,"Too Large Integer"]
[1119,"Too Large Integer"]
[1120,"Too Large Integer"]
[1121,"Too Large Integer"]
[1122,"Too Large Integer"]
[1123,"Too Large Integer"]
[1124,"Too Large Integer"]
[1125,"Too Large Integer"]
[1126,"Too Large Integer"]
[1127,"Too Large Integer"]
[1128,"Too Large Integer"]
[1129,"Too Large Integer"]
[1130,"Too Large Integer"]
[1131,"Too Large Integer"]
[1132,"Too Large Integer"]
[1133,{"$f":"OrdeUP100(A1133)","v":"Too Large Integer"}]
[1134,"Too Large Integer"]
[1135,"Too Large Integer"]
[1136,"Too Large Integer"]
[1137,"Too Large Integer"]
[1138,"Too Large Integer"]
[1139,"Too Large Integer"]
[1140,"Too Large Integer"]
[1141,"Too Large Integer"]
[1142,"Too Large Integer"]
[1143,"Too Large Integer"]
[1144,"Too Large Integer"]
[1145,"Too Large Integer"]
[1146,"Too Large Integer"]
[1147,"Too Large Integer"]
[1148,"Too Large Integer"]
[1149,"Too Large Integer"]
[1150,"Too Large Integer"]
[1151,"Too Large Integer"]
[1152,"Too Large Integer"]
[1153,"Too Large Integer"]
[1154,"Too Large Integer"]
[1155,"Too Large Integer"]
[1156,"Too Large Integer"]
[1157,"Too Large Integer"]
[1158,"Too Large Integer"]
[1159,"Too Large Integer"]
[1160,"Too Large Integer"]
[1161,"Too Large Integer"]
[1162,"Too Large Integer"]
[1163,"Too Large Integer"]
[1164,"Too Large Integer"]
[1165,"Too Large Integer"]
[1166,"Too Large Integer"]
[1167,"Too Large Integer"]
[1168,"Too Large Integer"]
[1169,"Too Large Integer"]
[1170,"Too Large Integer"]
[1171,"Too Large Integer"]
[1172,"Too Large Integer"]
[1173,"Too Large Integer"]
[1174,"Too Large Integer"]
[1175,"Too Large Integer"]
[1176,"Too Large Integer"]
[1177,"Too Large Integer"]
[1178,"Too Large Integer"]
[1179,"Too Large Integer"]
[1180,"Too Large Integer"]
[1181,"Too Large Integer"]
[1182,"Too Large Integer"]
[1183,"Too Large Integer"]

{"sheet":"Sheet2","index":1,"n_rows":0,"n_cols":0,"rows_kept":0,"cut":false,"hidden":false,"merged":[]}

{"sheet":"Sheet3","index":2,"n_rows":0,"n_cols":0,"rows_kept":0,"cut":false,"hidden":false,"merged":[]}